bitfinex/quotes_BTCUSD_20241119
["timestamp","ask_amount","ask_price","bid_price","bid_amount"]
[1732025811200,0.03244838,91767.0,91764.0,0.108974]
[1732025811404,0.108974,91765.0,91761.0,0.0017068]
[1732025811611,0.03244838,91764.0,91762.0,0.108977]
[1732025811813,0.03244838,91763.0,91762.0,0.108977]
[1732025812650,0.03244838,91763.0,91762.0,0.110977]
[1732025813071,0.20820578,91784.0,91770.0,0.002]
[1732025813289,0.16359294,91782.0,91770.0,0.217933]
[1732025813495,0.108955,91781.0,91776.0,0.10896]
[1732025813699,0.0785,91787.0,91777.0,0.108959]
[1732025813700,0.1013623,91787.0,91777.0,0.108959]
[1732025813913,0.108955,91781.0,91773.0,0.217929]
[1732025814137,0.108955,91781.0,91772.0,0.16359294]
[1732025814330,0.1013623,91787.0,91772.0,0.38152294]
[1732025814543,0.1013623,91787.0,91778.0,0.108958]
[1732025814959,0.1013623,91787.0,91773.0,0.108964]
[1732025815173,0.1013623,91787.0,91783.0,0.16359294]
[1732025815393,0.02154466,91792.0,91772.0,0.16359294]
[1732025815394,0.108943,91791.0,91772.0,0.16359294]
[1732025815595,0.02154466,91792.0,91772.0,0.16359294]
[1732025815596,0.108944,91790.0,91783.0,0.108951]
[1732025815803,0.108944,91790.0,91784.0,0.10895]
[1732025816030,0.02154466,91792.0,91775.0,0.00062131]
[1732025816447,0.02154466,91792.0,91787.0,0.108946]
[1732025816706,0.02154466,91792.0,91784.0,0.217902]
[1732025816914,0.02154466,91792.0,91787.0,0.108947]
[1732025817129,0.02154466,91792.0,91773.0,0.002]
[1732025817338,0.02154466,91792.0,91791.0,0.108943]
[1732025817544,0.02154466,91792.0,91789.0,0.108945]
[1732025817756,0.02154466,91792.0,91773.0,0.11106255]
[1732025817757,0.02154466,91792.0,91780.0,0.002]
[1732025818008,0.13048766,91792.0,91786.0,0.108949]
[1732025818214,0.02032983,91791.0,91786.0,0.108949]
[1732025818423,0.02032983,91790.0,91787.0,0.108947]
[1732025818633,0.02154466,91792.0,91787.0,0.108947]
[1732025818634,0.02032983,91789.0,91787.0,0.108947]
[1732025818840,0.02032983,91788.0,91787.0,0.108947]
[1732025819477,0.02032983,91788.0,91784.0,0.217902]
[1732025819684,0.02154466,91792.0,91784.0,0.217902]
[1732025819896,0.0203296,91791.0,91784.0,0.217902]
[1732025820102,0.0203296,91790.0,91784.0,0.217902]
[1732025820314,0.0203296,91789.0,91787.0,0.108947]
[1732025820590,0.0203296,91788.0,91783.0,0.217905]
[1732025820798,0.09697709,91790.0,91783.0,0.217905]
[1732025821013,0.09697709,91790.0,91679.0,0.02515549]
[1732025821014,0.02032982,91789.0,91782.0,0.217906]
[1732025821237,0.02032982,91789.0,91787.0,0.108947]
[1732025821238,0.02032982,91788.0,91787.0,0.108947]
[1732025822187,0.02032982,91788.0,91787.0,0.21800955]
[1732025822400,0.02032982,91788.0,91787.0,0.23000955]
[1732025822611,0.09701709,91800.0,91798.0,0.002]
[1732025822819,4e-05,91800.0,91799.0,0.110933]
[1732025823032,0.02036015,91800.0,91799.0,0.108933]
[1732025823267,0.05287245,91800.0,91799.0,0.21999555]
[1732025823470,0.05287245,91800.0,91799.0,0.21799555]
[1732025823881,0.05287245,91800.0,91799.0,0.24080174]
[1732025825241,0.02036015,91800.0,91799.0,0.24080174]
[1732025825655,0.02036015,91800.0,91799.0,0.24280174]
[1732025826099,0.02036015,91800.0,91799.0,0.24080174]
[1732025826349,0.02036015,91800.0,91799.0,0.24280174]
[1732025826583,4e-05,91800.0,91799.0,0.24280174]
[1732025826817,4e-05,91800.0,91799.0,0.21999555]
[1732025827067,4e-05,91800.0,91799.0,0.21799555]
[1732025827793,4e-05,91800.0,91799.0,0.22999555]
[1732025828075,4e-05,91800.0,91799.0,0.36099555]
[1732025828323,0.5409,91823.0,91799.0,0.36099555]
[1732025828324,0.4521927,91823.0,91822.0,0.108906]
[1732025828589,0.4521927,91823.0,91802.0,0.217859]
[1732025828590,0.16359294,91822.0,91821.0,0.108907]
[1732025828824,0.5409,91823.0,91822.0,0.108906]
[1732025829050,0.0012556,91829.0,91827.0,0.1089]
[1732025829282,0.5417528,91828.0,91827.0,0.1089]
[1732025829520,0.5417528,91828.0,91827.0,0.21996255]
[1732025829793,0.5417528,91828.0,91827.0,0.32796255]
[1732025830794,0.00065851,91840.0,91838.0,0.108887]
[1732025830795,0.5409,91839.0,91838.0,0.108887]
[1732025831052,0.5409,91839.0,91838.0,0.21794955]
[1732025831288,0.5409,91839.0,91838.0,0.58246486]
[1732025831540,0.5409,91839.0,91838.0,0.55946486]
[1732025831800,0.5409,91839.0,91838.0,0.58246486]
[1732025832022,0.5409,91839.0,91838.0,0.39225726]
[1732025832684,0.5409,91839.0,91838.0,0.39425726]
[1732025832914,0.5409,91839.0,91838.0,0.39225726]
[1732025833149,0.5409,91839.0,91838.0,0.36294955]
[1732025833398,0.5409,91839.0,91838.0,0.34094955]
[1732025833609,0.5409,91839.0,91838.0,0.31794955]
[1732025833822,0.5409,91839.0,91838.0,0.35068099]
[1732025834241,0.5409,91839.0,91838.0,0.21794955]
[1732025834688,0.5409,91839.0,91825.0,0.217805]
[1732025834912,0.5409,91839.0,91838.0,0.110887]
[1732025835117,0.5409,91839.0,91838.0,0.21994955]
[1732025835499,0.5409,91839.0,91838.0,0.21794955]
[1732025835983,0.5409,91839.0,91838.0,0.22994955]
[1732025836223,0.5409,91839.0,91838.0,0.25294955]
[1732025836656,0.5409,91839.0,91838.0,0.24247236]
[1732025836853,0.5409,91839.0,91838.0,0.10906255]
[1732025837056,0.5409,91839.0,91838.0,0.21794955]
[1732025837741,0.5409,91839.0,91838.0,0.38154249]
[1732025837943,0.5409,91839.0,91838.0,0.22222424]
[1732025838151,0.5409,91839.0,91838.0,0.21794955]
[1732025838367,0.00065851,91840.0,91839.0,0.108886]
[1732025840075,0.00065851,91840.0,91826.0,0.217802]
[1732025840283,0.00065851,91840.0,91825.0,0.00427469]
[1732025840284,0.00065851,91840.0,91837.0,0.108887]
[1732025840498,0.00065851,91840.0,91825.0,0.326707]
[1732025840709,0.00065851,91840.0,91834.0,0.16359294]
[1732025840909,0.00065851,91840.0,91834.0,0.217783]
[1732025841112,0.0017064,91839.0,91834.0,0.10889]
[1732025841325,0.0017064,91839.0,91825.0,0.217805]
[1732025841326,0.0808064,91839.0,91825.0,0.217805]
[1732025841530,0.217774,91838.0,91825.0,0.217805]
[1732025841737,0.0808064,91839.0,91824.0,0.16359294]
[1732025841955,0.0808064,91839.0,91824.0,0.27265549]
[1732025842155,0.0808064,91839.0,91831.0,0.21779]
[1732025842370,0.0808064,91839.0,91825.0,0.217805]
[1732025842548,0.0808064,91839.0,91833.0,0.108892]
[1732025842814,0.0808064,91839.0,91824.0,0.27265549]
[1732025843012,0.0808064,91839.0,91831.0,0.108895]
[1732025843237,0.0808064,91839.0,91816.0,0.00427469]
[1732025843238,0.00572531,91836.0,91815.0,0.217829]
[1732025843450,0.0004,91849.0,91824.0,0.16359294]
[1732025843451,0.108902,91825.0,91824.0,0.16359294]
[1732025843669,0.00572531,91828.0,91814.0,0.16359294]
[1732025843906,0.217787,91833.0,91814.0,0.16359294]
[1732025843907,0.00572531,91827.0,91814.0,0.16359294]
[1732025844161,0.0477,91834.0,91814.0,0.16359294]
[1732025844162,0.217817,91820.0,91814.0,0.16359294]
[1732025844421,0.108914,91815.0,91814.0,0.16359294]
[1732025844905,0.00572531,91820.0,91810.0,0.217839]
[1732025845160,0.00572531,91820.0,91814.0,0.16359294]
[1732025845331,0.00572531,91820.0,91818.0,0.10891]
[1732025845534,0.00572531,91820.0,91805.0,0.108926]
[1732025845747,0.108912,91817.0,91809.0,0.217841]
[1732025845970,0.00572531,91819.0,91808.0,0.108922]
[1732025845971,0.217823,91818.0,91808.0,0.108922]
[1732025846170,0.00572531,91819.0,91797.0,0.02275051]
[1732025846171,0.22354531,91819.0,91799.0,0.01]
[1732025846385,0.217822,91818.0,91805.0,0.00091191]
[1732025846805,0.108913,91816.0,91806.0,0.21785]
[1732025847020,0.0757,91823.0,91807.0,0.21875989]
[1732025847234,0.00572531,91825.0,91823.0,0.108904]
[1732025847442,0.00572531,91825.0,91807.0,0.10997444]
[1732025847682,0.00572531,91825.0,91817.0,0.108911]
[1732025847889,0.108905,91823.0,91816.0,0.217826]
[1732025848104,0.00572531,91825.0,91816.0,0.217826]
[1732025848314,0.00572531,91825.0,91807.0,0.32690855]
[1732025848315,0.217819,91819.0,91807.0,0.10906255]
[1732025848519,0.00572531,91825.0,91809.0,0.217843]
[1732025848814,0.21781,91823.0,91813.0,0.217833]
[1732025848980,0.108907,91822.0,91816.0,0.108912]
[1732025849188,0.00572531,91825.0,91821.0,0.108907]
[1732025849398,0.00572531,91842.0,91824.0,0.16359294]
[1732025849612,0.00572531,91836.0,91807.0,0.02221078]
[1732025849824,0.1001101,91850.0,91807.0,0.02221078]
[1732025849825,0.00572531,91825.0,91814.0,0.16359294]
[1732025850072,0.217807,91824.0,91814.0,0.16359294]
[1732025850280,0.00572531,91825.0,91814.0,0.16359294]
[1732025850469,0.10891,91819.0,91814.0,0.16359294]
[1732025850706,0.217812,91822.0,91814.0,0.16359294]
[1732025850883,0.217807,91824.0,91817.0,0.108911]
[1732025851091,0.21781,91823.0,91815.0,0.11109107]
[1732025851300,0.108906,91822.0,91817.0,0.108912]
[1732025851505,0.108907,91821.0,91815.0,0.108914]
[1732025851703,0.00572531,91825.0,91815.0,0.217829]
[1732025851843,0.00572531,91825.0,91816.0,0.217826]
[1732025852045,0.217807,91824.0,91814.0,0.16359294]
[1732025852376,0.217807,91824.0,91818.0,0.108911]
[1732025852645,0.108904,91824.0,91816.0,0.217826]
[1732025852819,0.10604641,91834.0,91814.0,0.16359294]
[1732025853016,0.00572531,91842.0,91816.0,0.1902076]
[1732025853285,0.00572531,91841.0,91818.0,0.227822]
[1732025853480,0.00572531,91841.0,91819.0,0.10906255]
[1732025853851,0.108885,91840.0,91836.0,0.108889]
[1732025854045,0.0017054,91839.0,91824.0,0.16359294]
[1732025854246,0.0017054,91839.0,91838.0,0.108887]
[1732025855491,0.0017054,91839.0,91838.0,0.11105962]
[1732025856121,0.0017054,91839.0,91838.0,0.22012217]
[1732025859048,0.108864,91858.0,91838.0,0.11123517]
[1732025859261,0.435449,91859.0,91839.0,0.10906255]
[1732025859475,0.0008542,91861.0,91839.0,0.10906255]
[1732025859727,0.108867,91855.0,91849.0,0.108873]
[1732025859958,0.108869,91854.0,91848.0,0.108875]
[1732025860184,0.108868,91855.0,91850.0,0.108872]
[1732025860406,0.217724,91859.0,91853.0,0.108869]
[1732025860624,0.217724,91859.0,91847.0,0.217751]
[1732025860839,0.217724,91859.0,91839.0,0.10906255]
[1732025860840,0.0008542,91861.0,91860.0,0.108861]
[1732025861990,0.0008542,91861.0,91860.0,0.21792355]
[1732025865718,0.0008542,91861.0,91852.0,0.01]
[1732025865719,0.0008542,91861.0,91844.0,0.217758]
[1732025865933,0.0008542,91861.0,91837.0,0.0581]
[1732025865934,0.0008542,91861.0,91855.0,0.16359294]
[1732025866154,0.217722,91860.0,91846.0,0.217754]
[1732025866369,0.217724,91859.0,91846.0,0.217754]
[1732025866625,0.217724,91859.0,91847.0,0.16359294]
[1732025866626,0.108875,91848.0,91847.0,0.16359294]
[1732025866860,0.0008542,91861.0,91847.0,0.16359294]
[1732025867099,0.108867,91855.0,91850.0,0.108872]
[1732025867331,0.108867,91855.0,91847.0,0.38134594]
[1732025867332,0.108867,91855.0,91847.0,0.16359294]
[1732025867560,0.108867,91855.0,91848.0,0.217751]
[1732025867780,0.0008542,91861.0,91847.0,0.16359294]
[1732025868059,0.0008542,91861.0,91860.0,0.108861]
[1732025868517,0.0008542,91861.0,91854.0,0.217735]
[1732025868518,0.0008542,91861.0,91854.0,0.217635]
[1732025868746,0.0008542,91861.0,91860.0,0.108861]
[1732025869409,0.0008542,91861.0,91858.0,0.108862]
[1732025870051,0.0008542,91861.0,91847.0,0.19196072]
[1732025870052,0.0008542,91861.0,91847.0,0.16359294]
[1732025870275,0.108863,91859.0,91849.0,0.108874]
[1732025870527,0.108863,91859.0,91847.0,0.27265549]
[1732025870528,0.108866,91856.0,91850.0,0.108872]
[1732025870759,0.0008542,91861.0,91849.0,0.108873]
[1732025870981,0.217724,91859.0,91849.0,0.108873]
[1732025871198,0.108868,91854.0,91849.0,0.108873]
[1732025872272,0.108868,91854.0,91839.0,0.217771]
[1732025872273,0.0008942,91861.0,91848.0,0.38134294]
[1732025872499,0.0008942,91861.0,91856.0,0.108865]
[1732025872723,0.0008942,91861.0,91854.0,0.217735]
[1732025872946,0.0008942,91861.0,91859.0,0.108861]
[1732025873183,0.24537565,91870.0,91858.0,0.108862]
[1732025873442,0.24537565,91870.0,91862.0,0.108858]
[1732025873443,0.108853,91867.0,91862.0,0.108858]
[1732025873691,0.02767665,91870.0,91858.0,0.16359294]
[1732025873945,0.02767665,91870.0,91860.0,0.10886]
[1732025874163,0.02767665,91870.0,91858.0,0.16359294]
[1732025874878,0.02767665,91870.0,91866.0,0.108853]
[1732025875127,0.108848,91871.0,91866.0,0.108853]
[1732025875370,0.1280833,91874.0,91868.0,0.108851]
[1732025875631,0.1280833,91874.0,91849.0,0.108874]
[1732025875632,0.108868,91854.0,91849.0,0.108874]
[1732025875880,0.108858,91862.0,91861.0,0.16359294]
[1732025876134,0.108858,91862.0,91836.0,0.1]
[1732025876135,0.108874,91849.0,91843.0,0.108881]
[1732025876358,0.108874,91849.0,91840.0,0.217767]
[1732025876613,0.108874,91849.0,91843.0,0.10888]
[1732025876852,0.217732,91856.0,91846.0,0.108877]
[1732025877117,0.217732,91856.0,91843.0,0.21776]
[1732025877118,0.108873,91850.0,91849.0,0.001705]
[1732025878039,0.31793555,91850.0,91849.0,0.001705]
[1732025878988,0.34599375,91850.0,91849.0,0.001705]
[1732025879945,0.128879,91845.0,91837.0,0.16359294]
[1732025880168,0.208887,91838.0,91837.0,0.16359294]
[1732025880442,0.31794955,91838.0,91837.0,0.16359294]
[1732025880704,0.31794955,91838.0,91824.0,0.16359294]
[1732025880705,0.108902,91825.0,91824.0,0.16359294]
[1732025880943,0.21796455,91825.0,91824.0,0.16359294]
[1732025881435,0.21796455,91825.0,91791.0,0.13738842]
[1732025881436,0.108911,91818.0,91783.0,0.29098136]
[1732025881680,0.29737355,91818.0,91797.0,0.21787]
[1732025881935,0.29737355,91818.0,91797.0,0.108935]
[1732025882421,0.29737355,91818.0,91795.0,0.208937]
[1732025882647,0.29737355,91818.0,91796.0,0.108937]
[1732025882897,0.108911,91818.0,91795.0,0.1]
[1732025883167,0.0287011,91825.0,91806.0,0.12738842]
[1732025883428,0.16665623,91838.0,91806.0,0.12738842]
[1732025883429,0.02134024,91838.0,91813.0,0.12738842]
[1732025883648,0.02134024,91838.0,91820.0,0.12738842]
[1732025883868,0.108887,91838.0,91833.0,0.108892]
[1732025884085,0.217762,91844.0,91818.0,0.10906255]
[1732025884086,0.02811859,91844.0,91825.0,0.023]
[1732025884302,0.02811859,91844.0,91826.0,0.32686555]
[1732025884533,0.14945896,91853.0,91826.0,0.10906255]
[1732025884747,0.14945896,91853.0,91824.0,0.16359294]
[1732025884748,0.10906255,91852.0,91824.0,0.16359294]
[1732025884972,0.108889,91837.0,91834.0,0.16359294]
[1732025885208,0.10906255,91852.0,91824.0,0.16359294]
[1732025885435,0.217748,91849.0,91824.0,0.16359294]
[1732025885658,0.108901,91826.0,91824.0,0.16359294]
[1732025885913,0.217798,91828.0,91824.0,0.16359294]
[1732025885914,0.108902,91825.0,91824.0,0.16359294]
[1732025886370,0.108902,91825.0,91817.0,0.0008527]
[1732025886371,0.108902,91825.0,91819.0,0.108909]
[1732025886597,0.18953093,91844.0,91817.0,0.0008527]
[1732025886865,0.108911,91818.0,91817.0,0.0008527]
[1732025887869,0.21797355,91818.0,91817.0,0.0008527]
[1732025889260,0.22797355,91818.0,91817.0,0.0008527]
[1732025889496,0.108937,91796.0,91795.0,0.1]
[1732025889742,0.108937,91796.0,91784.0,0.0008532]
[1732025889743,0.108939,91794.0,91784.0,0.0008532]
[1732025889980,0.21800155,91794.0,91784.0,0.0008532]
[1732025890218,0.01,91802.0,91784.0,0.0008532]
[1732025890219,0.01,91813.0,91787.0,0.217895]
[1732025890451,0.217824,91817.0,91784.0,0.0008532]
[1732025890700,0.10875805,91818.0,91784.0,0.0008532]
[1732025890947,0.10906255,91817.0,91794.0,0.217879]
[1732025891196,0.10906255,91817.0,91798.0,0.108934]
[1732025891449,0.108927,91805.0,91799.0,0.108933]
[1732025891704,0.10906255,91817.0,91804.0,0.217855]
[1732025891962,0.108921,91810.0,91809.0,0.16359294]
[1732025892220,0.02785805,91818.0,91791.0,0.0756]
[1732025892475,0.0861,91831.0,91808.0,0.16359294]
[1732025892476,0.0761,91831.0,91808.0,0.16359294]
[1732025892723,0.0761,91831.0,91796.0,0.10906255]
[1732025892724,0.217818,91820.0,91796.0,0.10906255]
[1732025892981,0.217798,91828.0,91813.0,0.108916]
[1732025893217,0.32686255,91827.0,91796.0,0.10906255]
[1732025893453,0.1,91826.0,91804.0,0.16359294]
[1732025893674,0.1,91826.0,91795.0,0.108938]
[1732025893675,0.326746,91814.0,91795.0,0.108938]
[1732025893932,0.108925,91806.0,91805.0,0.16359294]
[1732025894153,0.108939,91794.0,91786.0,0.217898]
[1732025894381,0.10906255,91813.0,91783.0,0.16359294]
[1732025894382,0.18953093,91806.0,91783.0,0.16359294]
[1732025894616,0.18953093,91815.0,91794.0,0.217879]
[1732025894906,0.18953093,91815.0,91793.0,0.16359294]
[1732025894907,0.108929,91803.0,91795.0,0.217876]
[1732025895135,0.217853,91805.0,91795.0,0.217876]
[1732025895355,0.217853,91805.0,91796.0,0.217874]
[1732025895356,0.108928,91804.0,91796.0,0.217874]
[1732025895584,0.18953093,91815.0,91794.0,0.217879]
[1732025895837,0.10893,91802.0,91796.0,0.108936]
[1732025896086,0.108934,91799.0,91795.0,0.16359294]
[1732025896528,0.108936,91797.0,91792.0,0.10894]
[1732025896748,0.10906255,91814.0,91785.0,0.2179]
[1732025896981,0.10906255,91814.0,91793.0,0.10894]
[1732025896982,0.108934,91798.0,91793.0,0.10894]
[1732025897665,0.10906255,91814.0,91791.0,0.108943]
[1732025897666,0.108938,91796.0,91791.0,0.108943]
[1732025897888,0.02144732,91817.0,91788.0,0.108946]
[1732025897889,0.10894,91793.0,91788.0,0.108946]
[1732025898116,0.10895,91785.0,91775.0,0.217924]
[1732025898392,0.10895,91785.0,91772.0,0.16359294]
[1732025902891,0.10895,91785.0,91775.0,0.217923]
[1732025902897,0.217883,91792.0,91782.0,0.108953]
[1732025903123,0.20906255,91805.0,91786.0,0.108949]
[1732025903358,0.108941,91793.0,91783.0,0.16359294]
[1732025903581,0.108932,91800.0,91788.0,0.108946]
[1732025903799,0.108932,91800.0,91787.0,0.108947]
[1732025903800,0.108942,91792.0,91787.0,0.108947]
[1732025904283,0.108941,91793.0,91787.0,0.108947]
[1732025904541,0.108941,91793.0,91783.0,0.16359294]
[1732025904542,0.02851111,91805.0,91804.0,0.108927]
[1732025904770,0.02851111,91805.0,91784.0,0.0238532]
[1732025905002,0.108929,91803.0,91798.0,0.108934]
[1732025905496,0.217853,91805.0,91794.0,0.16359294]
[1732025905497,0.0826,91818.0,91794.0,0.16359294]
[1732025905733,0.10906255,91817.0,91794.0,0.16359294]
[1732025905989,0.10906255,91817.0,91796.0,0.217874]
[1732025906218,0.108927,91805.0,91800.0,0.108932]
[1732025907189,0.217849,91807.0,91801.0,0.10893]
[1732025907401,0.108925,91806.0,91801.0,0.10893]
[1732025908108,0.217849,91807.0,91797.0,0.217872]
[1732025908369,0.217849,91807.0,91772.0,0.16359294]
[1732025908370,0.10906255,91805.0,91784.0,0.0008532]
[1732025908588,0.108932,91800.0,91799.0,0.16359294]
[1732025908838,0.217855,91804.0,91787.0,0.108946]
[1732025909059,0.108941,91793.0,91787.0,0.108946]
[1732025909286,0.108938,91796.0,91794.0,0.16359294]
[1732025909531,0.108938,91796.0,91790.0,0.108943]
[1732025909752,0.108938,91796.0,91787.0,0.217895]
[1732025909753,0.108942,91792.0,91786.0,0.108947]
[1732025909993,0.043584,91795.0,91794.0,0.108939]
[1732025910251,0.108925,91806.0,91801.0,0.10893]
[1732025910525,0.108925,91806.0,91799.0,0.217866]
[1732025910526,0.02866946,91807.0,91804.0,0.108927]
[1732025910772,0.04358,91805.0,91804.0,0.108927]
[1732025910995,0.04358,91805.0,91803.0,0.108928]
[1732025911238,0.04358,91805.0,91800.0,0.108931]
[1732025911504,0.108928,91804.0,91799.0,0.108933]
[1732025911729,0.04358,91805.0,91793.0,0.16359294]
[1732025911953,0.10906255,91804.0,91783.0,0.16359294]
[1732025912193,0.108938,91795.0,91794.0,0.16359294]
[1732025912406,0.10906255,91804.0,91785.0,0.2179]
[1732025912622,0.108933,91799.0,91794.0,0.108939]
[1732025912838,0.04358,91805.0,91788.0,0.0017092]
[1732025912839,0.15264255,91805.0,91788.0,0.0017092]
[1732025913075,0.108939,91795.0,91789.0,0.108945]
[1732025913518,0.108939,91795.0,91788.0,0.0017092]
[1732025913736,0.21785,91806.0,91788.0,0.0017092]
[1732025913737,0.108945,91789.0,91788.0,0.0017092]
[1732025914447,0.02,91815.0,91788.0,0.0017092]
[1732025914696,0.217884,91792.0,91788.0,0.0017092]
[1732025914917,0.108942,91792.0,91790.0,0.16359294]
[1732025915136,0.108942,91792.0,91788.0,0.0017092]
[1732025915354,0.108943,91791.0,91788.0,0.0017092]
[1732025915995,0.217874,91796.0,91788.0,0.0017092]
[1732025916211,0.108943,91791.0,91788.0,0.0017092]
[1732025916424,0.108945,91789.0,91788.0,0.0017092]
[1732025917825,0.21800755,91789.0,91788.0,0.0017092]
[1732025918686,0.12800755,91789.0,91788.0,0.0017092]
[1732025918819,0.21800755,91789.0,91788.0,0.0017092]
[1732025920318,0.21800755,91789.0,91788.0,0.00155614]
[1732025921811,0.24705568,91789.0,91788.0,0.00155614]
[1732025924166,0.26852681,91789.0,91788.0,0.00155614]
[1732025925666,0.02904813,91789.0,91788.0,0.00155614]
[1732025925859,0.13799313,91789.0,91788.0,0.00155614]
[1732025926116,0.108945,91790.0,91788.0,0.00155614]
[1732025926353,0.108945,91789.0,91788.0,0.00155614]
[1732025926570,0.09745169,91796.0,91788.0,0.00155614]
[1732025926806,0.24362924,91806.0,91788.0,0.00155614]
[1732025926807,0.09745169,91797.0,91791.0,0.108943]
[1732025927075,0.09745169,91797.0,91794.0,0.108938]
[1732025927268,0.20653718,91797.0,91792.0,0.108941]
[1732025927449,0.108936,91797.0,91792.0,0.108941]
[1732025928422,0.217866,91800.0,91788.0,0.00155614]
[1732025928615,0.217866,91800.0,91793.0,0.10894]
[1732025928854,0.108935,91798.0,91793.0,0.10894]
[1732025930180,0.217867,91799.0,91788.0,0.00155614]
[1732025930401,0.02883834,91801.0,91788.0,0.00155614]
[1732025930621,0.108945,91789.0,91788.0,0.00155614]
[1732025931692,0.21800755,91789.0,91788.0,0.00155614]
[1732025932597,0.31573087,91789.0,91788.0,0.00155614]
[1732025933251,0.21800755,91789.0,91788.0,0.00155614]
[1732025933964,0.293484,91792.0,91788.0,0.00155614]
[1732025933965,0.31560832,91792.0,91788.0,0.00155614]
[1732025934181,0.108944,91791.0,91788.0,0.00155614]
[1732025934859,0.14651648,91799.0,91789.0,0.217891]
[1732025934860,0.02837045,91794.0,91789.0,0.217891]
[1732025935078,0.02837045,91794.0,91788.0,0.00155614]
[1732025935079,0.108945,91789.0,91788.0,0.00155614]
[1732025935296,0.1192847,91803.0,91788.0,0.00155614]
[1732025935297,0.3371437,91803.0,91788.0,0.00155614]
[1732025935525,0.02876161,91799.0,91788.0,0.00155614]
[1732025935738,0.10906255,91798.0,91788.0,0.00155614]
[1732025935952,0.108945,91789.0,91788.0,0.00155614]
[1732025937443,0.10906255,91798.0,91788.0,0.00155614]
[1732025937688,0.108945,91789.0,91788.0,0.00155614]
[1732025938105,0.10906255,91798.0,91788.0,0.00155614]
[1732025938331,0.108945,91789.0,91788.0,0.00155614]
[1732025941002,0.21800755,91789.0,91788.0,0.00155614]
[1732025942157,0.22800755,91789.0,91788.0,0.00155614]
[1732025942375,0.58904235,91789.0,91788.0,0.00155614]
[1732025942618,0.83336921,91789.0,91788.0,0.00155614]
[1732025942832,0.97110594,91789.0,91788.0,0.00155614]
[1732025943044,0.72677908,91789.0,91788.0,0.00155614]
[1732025943267,0.72677908,91789.0,91784.0,0.0008532]
[1732025943268,0.35658338,91785.0,91784.0,0.0008532]
[1732025943484,0.46564593,91785.0,91784.0,0.0008532]
[1732025943700,0.82668073,91785.0,91784.0,0.0008532]
[1732025943923,0.81668073,91785.0,91784.0,0.0008532]
[1732025944164,0.228969,91769.0,91767.0,0.16359294]
[1732025944378,0.56343445,91769.0,91767.0,0.16359294]
[1732025944631,0.46566493,91769.0,91767.0,0.16359294]
[1732025944885,0.56343445,91769.0,91737.0,0.0008539]
[1732025945097,0.82650378,91769.0,91738.0,0.109005]
[1732025945326,0.82650378,91769.0,91737.0,0.1098609]
[1732025945327,1.02198077,91769.0,91737.0,0.1098609]
[1732025945590,1.02198077,91769.0,91737.0,0.0008539]
[1732025946054,1.10358077,91769.0,91737.0,0.0008539]
[1732025946281,0.90810378,91769.0,91737.0,0.0008539]
[1732025946513,0.90810378,91769.0,91742.0,0.218001]
[1732025946514,0.89810378,91769.0,91742.0,0.218001]
[1732025946745,0.217936,91771.0,91752.0,0.1275]
[1732025946746,0.19540436,91771.0,91752.0,0.1275]
[1732025946967,0.19540436,91771.0,91756.0,0.27257694]
[1732025946968,0.108969,91769.0,91756.0,0.27257694]
[1732025947184,0.108969,91769.0,91756.0,0.16359294]
[1732025947439,0.108969,91769.0,91756.0,0.27257694]
[1732025947696,0.108969,91769.0,91757.0,0.16530114]
[1732025947697,0.21803155,91769.0,91757.0,0.16530114]
[1732025947943,0.108969,91769.0,91757.0,0.16530114]
[1732025948181,0.02888338,91771.0,91758.0,0.217963]
[1732025948402,0.108969,91769.0,91757.0,0.27428414]
[1732025948647,0.108969,91769.0,91758.0,0.108981]
[1732025948902,0.108969,91769.0,91757.0,0.16530114]
[1732025948903,0.22803155,91769.0,91757.0,0.0017082]
[1732025949209,0.22803155,91769.0,91758.0,0.16359294]
[1732025949751,0.33803155,91769.0,91757.0,0.0017082]
[1732025949955,0.51670623,91769.0,91757.0,0.0017082]
[1732025950197,0.51668196,91769.0,91757.0,0.0017082]
[1732025950416,0.41903155,91769.0,91757.0,0.0017082]
[1732025950675,0.51668196,91769.0,91757.0,0.0017082]
[1732025950909,0.41903155,91769.0,91757.0,0.0017082]
[1732025951150,0.02,91762.0,91757.0,0.0017082]
[1732025951364,0.35567293,91762.0,91757.0,0.0017082]
[1732025952089,0.45328707,91762.0,91757.0,0.0017082]
[1732025952340,0.35567293,91762.0,91757.0,0.0017082]
[1732025952570,0.35567293,91762.0,91706.0,0.01]
[1732025952571,0.311406,91738.0,91732.0,0.16359294]
[1732025952784,0.229006,91738.0,91732.0,0.16359294]
[1732025953007,0.229006,91738.0,91721.0,0.16359294]
[1732025953008,0.35663938,91738.0,91721.0,0.16359294]
[1732025953444,0.61193184,91738.0,91721.0,0.16359294]
[1732025953904,0.46570193,91738.0,91721.0,0.16359294]
[1732025954797,0.56307275,91738.0,91721.0,0.16359294]
[1732025955235,0.46570193,91738.0,91721.0,0.16359294]
[1732025956349,0.57422493,91738.0,91721.0,0.16359294]
[1732025956592,0.57422493,91738.0,91695.0,0.0481]
[1732025956593,0.57422493,91738.0,91694.0,0.16359294]
[1732025956594,0.119057,91695.0,91694.0,0.16359294]
[1732025956854,0.35669038,91695.0,91694.0,0.16359294]
[1732025957295,0.35669038,91695.0,91691.0,0.0004]
[1732025957296,0.01,91677.0,91676.0,0.0017094]
[1732025957520,0.33814055,91677.0,91676.0,0.0017094]
[1732025957729,0.32814055,91677.0,91676.0,0.0017094]
[1732025958442,0.33814055,91677.0,91676.0,0.0017094]
[1732025958705,0.46527393,91677.0,91676.0,0.0017094]
[1732025958945,0.33764055,91677.0,91676.0,0.0017094]
[1732025959409,0.32764055,91677.0,91676.0,0.0017094]
[1732025959625,0.32764055,91677.0,91667.0,0.16359294]
[1732025959626,0.209084,91672.0,91667.0,0.16359294]
[1732025959851,0.32764655,91672.0,91667.0,0.16359294]
[1732025960070,0.32764655,91672.0,91651.0,0.218618]
[1732025960071,0.32764655,91672.0,91655.0,0.16359294]
[1732025961444,0.32764655,91672.0,91656.0,0.16359294]
[1732025961445,0.32814655,91672.0,91656.0,0.16359294]
[1732025961656,0.32764655,91672.0,91656.0,0.16359294]
[1732025962092,0.218584,91672.0,91656.0,0.16359294]
[1732025962312,0.32764655,91672.0,91656.0,0.16359294]
[1732025962537,0.32764655,91672.0,91651.0,0.0004]